fUST/lending_fUST_20250619
["ID","MTS","AMOUNT","RATE_DAILY","PERIOD"]
[366456552,1750263056638,-460.0,0.00022465,6]
[366456553,1750263056649,-460.0,0.00022465,6]
[366456554,1750263056660,-400.0,0.00022465,6]
[366456555,1750263056670,-370.0,0.00022465,6]
[366456556,1750263056679,-460.0,0.00022465,6]
[366456557,1750263056688,-460.0,0.00022465,6]
[366456558,1750263056698,-460.0,0.00022465,6]
[366456559,1750263056707,-426.2529394,0.00022465,6]
[366456560,1750263056717,-460.0,0.00022465,6]
[366456561,1750263056726,-360.0,0.00022465,6]
[366456562,1750263056735,-460.0,0.00022465,2]
[366456563,1750263056745,-460.0,0.00022465,6]
[366456564,1750263056754,-600.99897825,0.00022465,6]
[366456565,1750263056764,-460.0,0.00022465,6]
[366456566,1750263056773,-460.0,0.00022465,6]
[366456567,1750263056783,-460.0,0.00022465,6]
[366456568,1750263056793,-460.0,0.00022465,6]
[366456569,1750263056802,-460.0,0.00022465,6]
[366456570,1750263056812,-460.0,0.00022465,6]
[366456571,1750263056821,-460.0,0.00022465,6]
[366456572,1750263056831,-460.0,0.00022465,6]
[366456573,1750263056839,-460.0,0.00022465,6]
[366456574,1750263056847,-444.86081869,0.00022465,6]
[366456575,1750263056856,-200.0,0.00022465,6]
[366456576,1750263056864,-460.0,0.00022465,6]
[366456577,1750263056872,-460.0,0.00022465,6]
[366456578,1750263056881,-460.0,0.00022465,6]
[366456579,1750263056890,-460.0,0.00022465,6]
[366456580,1750263056900,-460.0,0.00022465,6]
[366456581,1750263056910,-460.0,0.00022465,6]
[366456582,1750263056919,-460.0,0.00022465,6]
[366456583,1750263056929,-460.0,0.00022465,6]
[366456584,1750263056938,-460.0,0.00022465,6]
[366456585,1750263056948,-380.0,0.00022465,6]
[366456586,1750263056957,-460.0,0.00022465,6]
[366456587,1750263056966,-410.0,0.00022465,6]
[366456588,1750263056976,-412.07427984,0.00022465,6]
[366456589,1750263056985,-370.0,0.00022465,6]
[366456590,1750263056995,-400.0,0.00022465,6]
[366456591,1750263057004,-460.0,0.00022465,6]
[366456592,1750263057014,-410.0,0.00022465,6]
[366456593,1750263057023,-744.08,0.00022465,6]
[366456594,1750263057032,-460.0,0.00022465,6]
[366456595,1750263057042,-460.0,0.00022465,6]
[366456596,1750263057051,-383.5571818,0.00022465,6]
[366456597,1750263057061,-500.0,0.00022465,6]
[366456598,1750263057070,-460.0,0.00022465,6]
[366456599,1750263057080,-621.32,0.00022465,6]
[366456600,1750263057089,-605.23495465,0.00022465,6]
[366456601,1750263057099,-580.99474585,0.00022465,6]
[366456602,1750263057108,-460.0,0.00022465,6]
[366456603,1750263057118,-460.0,0.00022465,6]
[366456604,1750263057128,-527.28,0.00022465,6]
[366456605,1750263057138,-460.0,0.00022465,6]
[366456606,1750263057146,-420.0,0.00022465,6]
[366456607,1750263057155,-460.0,0.00022465,6]
[366456608,1750263057165,-460.0,0.00022465,6]
[366456609,1750263057174,-460.0,0.00022465,6]
[366456610,1750263057184,-460.0,0.00022465,6]
[366456611,1750263057193,-460.0,0.00022465,6]
[366456612,1750263057204,-460.0,0.00022465,6]
[366456613,1750263057213,-460.0,0.00022465,6]
[366456614,1750263057222,-460.0,0.00022465,6]
[366456615,1750263057231,-460.0,0.00022465,6]
[366456616,1750263057241,-460.0,0.00022465,6]
[366456617,1750263057251,-460.0,0.00022465,6]
[366456618,1750263057260,-460.0,0.00022465,6]
[366456619,1750263057269,-162.23534825,0.00022465,6]
[366456620,1750263057278,-460.0,0.00022465,6]
[366456621,1750263057287,-370.0,0.00022465,6]
[366456622,1750263057296,-370.0,0.00022465,6]
[366456623,1750263057311,-460.0,0.00022465,6]
[366456624,1750263057320,-460.0,0.00022465,6]
[366456625,1750263057329,-735.71,0.00022465,6]
[366456626,1750263057338,-460.0,0.00022465,6]
[366456627,1750263057347,-400.0,0.00022465,6]
[366456628,1750263057357,-460.0,0.00022465,6]
[366456629,1750263057367,-460.0,0.00022465,6]
[366456630,1750263057377,-460.0,0.00022465,6]
[366456631,1750263057387,-380.0,0.00022465,6]
[366456632,1750263057397,-460.0,0.00022465,6]
[366456633,1750263057406,-460.0,0.00022465,6]
[366456634,1750263057415,-460.0,0.00022465,6]
[366456635,1750263057425,-460.0,0.00022465,6]
[366456636,1750263057434,-460.0,0.00022465,6]
[366456637,1750263057443,-460.0,0.00022465,6]
[366456638,1750263057452,-380.0,0.00022465,6]
[366456639,1750263057462,-460.0,0.00022465,6]
[366456640,1750263057471,-460.0,0.00022465,6]
[366456641,1750263057481,-460.0,0.00022465,6]
[366456642,1750263057490,-274.07514049,0.00022465,6]
[366456643,1750263057499,-400.0,0.00022465,6]
[366456644,1750263057509,-380.0,0.00022465,6]
[366456645,1750263057519,-460.0,0.00022465,6]
[366456646,1750263057528,-460.0,0.00022465,6]
[366456647,1750263057537,-387.35328955,0.00022465,6]
[366456648,1750263057547,-400.0,0.00022465,6]
[366456649,1750263057557,-460.0,0.00022465,6]
[366456650,1750263057567,-460.0,0.00022465,6]
[366456651,1750263057577,-460.0,0.00022465,6]
[366456652,1750263057587,-460.0,0.00022465,6]
[366456653,1750263057597,-460.0,0.00022465,6]
[366456654,1750263057606,-460.0,0.00022465,6]
[366456655,1750263057616,-460.0,0.00022465,6]
[366456656,1750263057626,-1023.56,0.00022465,6]
[366456657,1750263057636,-460.0,0.00022465,6]
[366456658,1750263057646,-460.0,0.00022465,6]
[366456659,1750263057656,-340.0,0.00022465,6]
[366456660,1750263057666,-387.89174655,0.00022465,6]
[366456661,1750263057676,-460.0,0.00022465,6]
[366456662,1750263057686,-273.19832708,0.00022465,6]
[366456663,1750263057696,-487.84,0.00022465,6]
[366456664,1750263057706,-380.0,0.00022465,6]
[366456665,1750263057716,-460.0,0.00022465,6]
[366456666,1750263057726,-666.78,0.00022465,6]
[366456667,1750263057735,-460.0,0.00022465,6]
[366456668,1750263057745,-460.0,0.00022465,6]
[366456669,1750263057754,-314.80217655,0.00022465,6]
[366456670,1750263057763,-460.0,0.00022465,6]
[366456671,1750263057772,-460.0,0.00022465,6]
[366456672,1750263057781,-400.0,0.00022465,6]
[366456673,1750263057791,-460.0,0.00022465,6]
[366456674,1750263057800,-460.0,0.00022465,6]
[366456675,1750263057809,-460.0,0.00022465,6]
[366456676,1750263057818,-497.51467537,0.00022465,6]
[366456677,1750263057828,-1170.02,0.00022465,6]
[366456678,1750263057838,-791.85,0.00022465,6]
[366456679,1750263057847,-460.0,0.00022465,6]
[366456680,1750263057856,-460.0,0.00022465,6]
[366456681,1750263057866,-568.65,0.00022465,6]
[366456682,1750263057876,-460.0,0.00022465,6]
[366456683,1750263057887,-358.2844403,0.00022465,6]
[366456684,1750263057897,-460.0,0.00022465,6]
[366456685,1750263057907,-460.0,0.00022465,6]
[366456686,1750263057917,-387.5603561,0.00022465,6]
[366456687,1750263057927,-460.0,0.00022465,6]
[366456688,1750263057937,-460.0,0.00022465,6]
[366456689,1750263057947,-460.0,0.00022465,6]
[366456690,1750263057956,-460.0,0.00022465,6]
[366456691,1750263057966,-460.0,0.00022465,6]
[366456692,1750263057976,-460.0,0.00022465,6]
[366456693,1750263057986,-460.0,0.00022465,6]
[366456694,1750263057995,-474.87,0.00022465,6]
[366456695,1750263058004,-518.56,0.00022465,6]
[366456696,1750263058014,-460.0,0.00022465,6]
[366456697,1750263058024,-671.47,0.00022465,6]
[366456698,1750263058034,-4246.95,0.00022465,6]
[366456699,1750263058044,-460.0,0.00022465,6]
[366456700,1750263058053,-460.0,0.00022465,6]
[366456701,1750263058063,-460.0,0.00022465,6]
[366456702,1750263058073,-460.0,0.00022465,6]
[366456703,1750263058083,-460.0,0.00022465,6]
[366456704,1750263058092,-460.0,0.00022465,6]
[366456705,1750263058102,-244.65830121,0.00022465,6]
[366456706,1750263058112,-460.0,0.00022465,6]
[366456707,1750263058121,-460.0,0.00022465,6]
[366456708,1750263058132,-263.13096979,0.00022465,6]
[366456709,1750263058142,-460.0,0.00022465,6]
[366456710,1750263058151,-460.0,0.00022465,6]
[366456711,1750263058161,-460.0,0.00022465,6]
[366456712,1750263058171,-563.086631,0.00022465,6]
[366456713,1750263058181,-3897.04,0.00022465,6]
[366456714,1750263058191,-1762.73,0.00022465,6]
[366456715,1750263058200,-741.78,0.00022465,6]
[366456716,1750263058210,-178.01564813,0.00022465,6]
[366456717,1750263058220,-2527.95,0.00022465,6]
[366456718,1750263058230,-460.0,0.00022465,6]
[366456719,1750263058240,-500.0,0.00022465,6]
[366456720,1750263058251,-460.0,0.00022465,6]
[366456721,1750263058261,-3589.72,0.00022465,6]
[366456722,1750263058271,-1023.06,0.00022465,6]
[366456723,1750263058281,-460.0,0.00022465,6]
[366456724,1750263058291,-460.0,0.00022465,6]
[366456725,1750263058301,-460.0,0.00022465,6]
[366456726,1750263058315,-460.0,0.00022465,6]
[366456727,1750263058325,-460.0,0.00022465,6]
[366456728,1750263058336,-662.53,0.00022465,6]
[366456729,1750263058346,-460.0,0.00022465,6]
[366456730,1750263058356,-780.04,0.00022465,6]
[366456731,1750263058366,-460.0,0.00022465,6]
[366456732,1750263058375,-460.0,0.00022465,6]
[366456733,1750263058386,-460.0,0.00022465,6]
[366456734,1750263058396,-460.0,0.00022465,6]
[366456735,1750263058405,-460.0,0.00022465,6]
[366456736,1750263058415,-618.72,0.00022465,6]
[366456737,1750263058425,-460.0,0.00022465,6]
[366456738,1750263058435,-460.0,0.00022465,6]
[366456739,1750263058444,-460.0,0.00022465,6]
[366456740,1750263058454,-4198.1,0.00022465,6]
[366456741,1750263058463,-684.86,0.00022465,6]
[366456742,1750263058472,-460.0,0.00022465,6]
[366456743,1750263058482,-460.0,0.00022465,6]
[366456744,1750263058492,-460.0,0.00022465,6]
[366456745,1750263058501,-1596.71,0.00022465,6]
[366456746,1750263058510,-546.05,0.00022465,6]
[366456747,1750263058616,-460.0,0.00022465,6]
[366456748,1750263058639,-649.37,0.00022465,6]
[366456749,1750263058649,-477.36,0.00022465,6]
[366456750,1750263058659,-460.0,0.00022465,6]
[366456751,1750263058668,-460.0,0.00022465,6]
[366456752,1750263058678,-1896.77,0.00022465,6]
[366456753,1750263058687,-606.94,0.00022465,6]
[366456754,1750263058697,-460.0,0.00022465,6]
[366456755,1750263058706,-460.0,0.00022465,6]
[366456756,1750263058716,-975.69,0.00022465,6]
[366456757,1750263058726,-460.0,0.00022465,6]
[366456758,1750263058736,-460.0,0.00022465,6]
[366456759,1750263058746,-2289.57,0.00022465,6]
[366456760,1750263058756,-607.85,0.00022465,6]
[366456761,1750263058767,-1286.04,0.00022465,6]
[366456762,1750263058777,-460.0,0.00022465,6]
[366456763,1750263058786,-814.77,0.00022465,6]
[366456764,1750263058796,-1284.44,0.00022465,6]
[366456765,1750263058807,-460.0,0.00022465,6]
[366456766,1750263058816,-501.84986204,0.00022465,6]
[366456767,1750263058827,-460.0,0.00022465,6]
[366456768,1750263058837,-460.0,0.00022465,6]
[366456769,1750263058847,-351.05016432,0.00022465,6]
[366456770,1750263058856,-460.0,0.00022465,6]
[366456771,1750263058866,-400.0,0.00022465,6]
[366456772,1750263058876,-371.16221496,0.00022465,6]
[366456773,1750263058887,-460.0,0.00022465,6]
[366456774,1750263058897,-460.0,0.00022465,6]
[366456775,1750263058907,-460.0,0.00022465,6]
[366456776,1750263058917,-460.0,0.00022465,6]
[366456777,1750263058927,-460.0,0.00022465,6]
[366456778,1750263058937,-460.0,0.00022465,6]
[366456779,1750263058946,-468.17282175,0.00022465,6]
[366456780,1750263058956,-460.0,0.00022465,6]
[366456781,1750263058966,-460.0,0.00022465,6]
[366456782,1750263058976,-281.72571912,0.00022465,6]
[366456783,1750263058985,-460.0,0.00022465,6]
[366456784,1750263058994,-460.0,0.00022465,6]
[366456785,1750263059004,-577.06,0.00022465,6]
[366456786,1750263059014,-460.0,0.00022465,6]
[366456787,1750263059023,-460.0,0.00022465,6]
[366456788,1750263059032,-460.0,0.00022465,6]
[366456789,1750263059041,-761.19,0.00022465,6]
[366456790,1750263059051,-460.0,0.00022465,6]
[366456791,1750263059061,-460.0,0.00022465,6]
[366456792,1750263059070,-460.0,0.00022465,6]
[366456793,1750263059080,-641.22,0.00022465,6]
[366456794,1750263059090,-159.44651425,0.00022465,6]
[366456795,1750263059100,-380.0,0.00022465,6]
[366456796,1750263059109,-460.0,0.00022465,6]
[366456797,1750263059119,-460.0,0.00022465,6]
[366456798,1750263059128,-460.0,0.00022465,6]
[366456799,1750263059139,-460.0,0.00022465,6]
[366456800,1750263059148,-460.0,0.00022465,6]
[366456801,1750263059157,-460.0,0.00022465,6]
[366456802,1750263059167,-460.0,0.00022465,6]
[366456803,1750263059176,-460.0,0.00022465,6]
[366456804,1750263059186,-1070.37,0.00022465,6]
[366456805,1750263059196,-460.0,0.00022465,6]
[366456806,1750263059206,-460.0,0.00022465,6]
[366456807,1750263059215,-460.0,0.00022465,6]
[366456808,1750263059225,-460.0,0.00022465,6]
[366456809,1750263059235,-460.0,0.00022465,6]
[366456810,1750263059245,-460.0,0.00022465,6]
[366456811,1750263059255,-355.73418528,0.00022465,6]
[366456812,1750263059264,-1741.04,0.00022465,6]
[366456813,1750263059274,-460.0,0.00022465,6]
[366456814,1750263059284,-460.0,0.00022465,6]
[366456815,1750263059294,-460.0,0.00022465,6]
[366456816,1750263059303,-460.0,0.00022465,6]
[366456817,1750263059316,-460.0,0.00022465,6]
[366456818,1750263059325,-9058.0,0.00022465,6]
[366456819,1750263059335,-460.0,0.00022465,6]
[366456820,1750263059345,-370.0,0.00022465,6]
[366456821,1750263059355,-3081.13,0.00022465,6]
[366456822,1750263059365,-514.89,0.00022465,6]
[366456823,1750263059375,-460.0,0.00022465,6]
[366456824,1750263059386,-343.02470976,0.00022465,6]
[366456825,1750263059398,-460.0,0.00022465,6]
[366456826,1750263059409,-460.0,0.00022465,6]
[366456827,1750263059418,-460.0,0.00022465,6]
[366456828,1750263059427,-370.0,0.00022465,6]
[366456829,1750263059437,-718.17,0.00022465,6]
[366456830,1750263059447,-460.0,0.00022465,6]
[366456831,1750263059457,-715.56,0.00022465,6]
[366456832,1750263059467,-460.0,0.00022465,6]
[366456833,1750263059477,-462.03,0.00022465,6]
[366456834,1750263059487,-417.68979239,0.00022465,6]
[366456835,1750263059496,-3693.66,0.00022465,6]
[366456836,1750263059506,-500.0,0.00022473,2]
[366456837,1750263059516,-501.26660304,0.00022473,2]
[366456838,1750263059525,-500.0,0.00022473,2]
[366456839,1750263059535,-500.0,0.00022473,2]
[366456840,1750263059545,-420.0,0.00022497,2]
[366456841,1750263059554,-420.0,0.00022497,2]
[366456842,1750263059564,-321001.32334315,0.00022512,2]
[366456843,1750263059575,-1815.222872,0.00022515,2]
[366456844,1750263059585,-1000.0,0.00022521,2]
[366456845,1750263059594,-500.0,0.00022521,2]
[366456846,1750263059603,-501.0127259,0.00022521,2]
[366456847,1750263059613,-1000.0,0.00022521,2]
[366456848,1750263059623,-1000.0,0.00022521,2]
[366456849,1750263059633,-373.16237222,0.00022521,2]
[366456850,1750263059642,-1000.0,0.00022521,2]
[366456851,1750263059652,-971.47148591,0.00022521,2]
[366456852,1750263059662,-1882.38611826,0.0002257,2]
[366456853,1750263059671,-500.0,0.00022573,2]
[366456854,1750263059681,-500.0,0.00022573,2]
[366456855,1750263059691,-525.0,0.00022604,2]
[366456856,1750263059708,-947.14694789,0.00022624,7]
[366456857,1750263059717,-1952.03440464,0.00022625,2]
[366456858,1750263059726,-2024.25967761,0.0002268,2]
[366456859,1750263059736,-1000.37286074,0.00022721,2]
[366456860,1750263059746,-1000.0,0.00022721,2]
[366456861,1750263059756,-1200.0,0.00022721,2]
[366456862,1750263059766,-516.47411252,0.00022721,2]
[366456863,1750263059776,-500.0,0.00022721,2]
[366456864,1750263059785,-500.0,0.00022721,2]
[366456865,1750263059796,-1002.91797516,0.00022721,2]
[366456866,1750263059806,-1000.0,0.00022721,2]
[366456867,1750263059816,-1000.0,0.00022721,2]
[366456868,1750263059826,-1000.72314247,0.00022721,2]
[366456869,1750263059837,-1000.0,0.00022721,2]
[366456870,1750263059847,-405.86013099,0.00022721,2]
[366456871,1750263059857,-500.0,0.00022721,2]
[366456872,1750263059868,-2099.15728568,0.00022735,2]
[366456873,1750263059878,-496.72909165,0.00022739,6]
[366456874,1750263059894,-460.0,0.00022739,6]
[366456875,1750263059903,-460.0,0.00022739,6]
[366456876,1750263059913,-460.0,0.00022739,6]
[366456877,1750263059923,-460.0,0.00022739,6]
[366456878,1750263059932,-460.0,0.00022739,6]
[366456879,1750263059942,-460.0,0.00022739,6]
[366456880,1750263059952,-460.0,0.00022739,6]
[366456881,1750263059962,-460.0,0.00022739,6]
[366456882,1750263059971,-460.0,0.00022739,6]
[366456883,1750263059982,-460.0,0.00022739,6]
[366456884,1750263059992,-460.0,0.00022739,6]
[366456885,1750263060002,-460.0,0.00022739,6]
[366456886,1750263060012,-460.0,0.00022739,6]
[366456887,1750263060022,-173.01264835,0.00022739,6]
[366456888,1750263060032,-460.0,0.00022739,6]
[366456889,1750263060042,-460.0,0.00022739,2]
[366456890,1750263060053,-460.0,0.00022739,6]
[366456891,1750263060065,-460.0,0.00022739,6]
[366456892,1750263060075,-460.0,0.00022739,6]
[366456893,1750263060085,-460.0,0.00022739,6]
[366456894,1750263060095,-460.0,0.00022739,6]
[366456895,1750263060105,-460.0,0.00022739,6]
[366456896,1750263060115,-460.0,0.00022739,6]
[366456897,1750263060126,-460.0,0.00022739,6]
[366456898,1750263060138,-440.0,0.00022739,6]
[366456899,1750263060149,-382.20325355,0.00022739,6]
[366456900,1750263060159,-282.06916202,0.00022739,6]
[366456901,1750263060168,-460.0,0.00022739,6]
[366456902,1750263060179,-460.0,0.00022739,6]
[366456903,1750263060189,-460.0,0.00022739,6]
[366456904,1750263060199,-460.0,0.00022739,6]
[366456905,1750263060209,-460.0,0.00022739,6]
[366456906,1750263060222,-460.0,0.00022739,6]
[366456907,1750263060232,-460.0,0.00022739,6]
[366456908,1750263060242,-744.08,0.00022739,6]
[366456909,1750263060252,-460.0,0.00022739,6]
[366456910,1750263060261,-460.0,0.00022739,6]
[366456911,1750263060272,-500.0,0.00022739,6]
[366456912,1750263060281,-460.0,0.00022739,6]
[366456913,1750263060291,-621.32,0.00022739,6]
[366456914,1750263060302,-460.0,0.00022739,6]
[366456915,1750263060315,-460.0,0.00022739,6]
[366456916,1750263060325,-527.28,0.00022739,6]
[366456917,1750263060336,-460.0,0.00022739,6]
[366456918,1750263060345,-509.58479833,0.00022739,6]
[366456919,1750263060355,-460.0,0.00022739,6]
[366456920,1750263060364,-190.0,0.00022739,6]
[366456921,1750263060375,-460.0,0.00022739,6]
[366456922,1750263060387,-460.0,0.00022739,6]
[366456923,1750263060397,-460.0,0.00022739,6]
[366456924,1750263060407,-460.0,0.00022739,6]
[366456925,1750263060416,-320.0,0.00022739,6]
[366456926,1750263060426,-460.0,0.00022739,6]
[366456927,1750263060436,-382.62766146,0.00022739,6]
[366456928,1750263060446,-460.0,0.00022739,6]
[366456929,1750263060456,-423.52346553,0.00022739,6]
[366456930,1750263060466,-342.62414222,0.00022739,6]
[366456931,1750263060476,-460.0,0.00022739,6]
[366456932,1750263060487,-735.71,0.00022739,6]
[366456933,1750263060497,-350.0,0.00022739,6]
[366456934,1750263060507,-460.0,0.00022739,6]
[366456935,1750263060517,-460.0,0.00022739,6]
[366456936,1750263060527,-253.46779028,0.00022739,6]
[366456937,1750263060537,-460.0,0.00022739,6]
[366456938,1750263060546,-460.0,0.00022739,6]
[366456939,1750263060556,-460.0,0.00022739,6]
[366456940,1750263060565,-460.0,0.00022739,6]
[366456941,1750263060575,-460.0,0.00022739,6]
[366456942,1750263060585,-400.0,0.00022739,6]
[366456943,1750263060595,-460.0,0.00022739,6]
[366456944,1750263060604,-317.73729379,0.00022739,6]
[366456945,1750263060614,-460.0,0.00022739,6]
[366456946,1750263060623,-460.0,0.00022739,6]
[366456947,1750263060633,-581.18362308,0.00022739,6]
[366456948,1750263060643,-342.06250876,0.00022739,6]
[366456949,1750263060652,-460.0,0.00022739,6]
[366456950,1750263060661,-460.0,0.00022739,6]
[366456951,1750263060671,-460.0,0.00022739,6]
[366456952,1750263060681,-460.0,0.00022739,6]
[366456953,1750263060691,-460.0,0.00022739,6]
[366456954,1750263060700,-176.95288892,0.00022739,6]
[366456955,1750263060710,-1023.56,0.00022739,6]
[366456956,1750263060719,-460.0,0.00022739,6]
[366456957,1750263060729,-340.0,0.00022739,6]
[366456958,1750263060738,-460.0,0.00022739,6]
[366456959,1750263060748,-487.84,0.00022739,6]
[366456960,1750263060758,-460.0,0.00022739,6]
[366456961,1750263060768,-666.78,0.00022739,6]
[366456962,1750263060777,-460.0,0.00022739,6]
[366456963,1750263060787,-370.0,0.00022739,6]
[366456964,1750263060796,-460.0,0.00022739,6]
[366456965,1750263060806,-460.0,0.00022739,6]
[366456966,1750263060815,-460.0,0.00022739,6]
[366456967,1750263060825,-460.0,0.00022739,6]
[366456968,1750263060834,-500.5111075,0.00022739,6]
[366456969,1750263060844,-1170.02,0.00022739,6]
[366456970,1750263060854,-791.85,0.00022739,6]
[366456971,1750263060863,-460.0,0.00022739,6]
[366456972,1750263060873,-565.65512492,0.00022739,6]
[366456973,1750263060882,-568.65,0.00022739,6]
[366456974,1750263060893,-460.0,0.00022739,6]
[366456975,1750263060902,-460.0,0.00022739,6]
[366456976,1750263061001,-460.0,0.00022739,6]
[366456977,1750263061022,-460.0,0.00022739,6]
[366456978,1750263061032,-460.0,0.00022739,6]
[366456979,1750263061042,-460.0,0.00022739,6]
[366456980,1750263061052,-460.0,0.00022739,6]
[366456981,1750263061062,-460.0,0.00022739,6]
[366456982,1750263061071,-297.97430761,0.00022739,6]
[366456983,1750263061081,-460.0,0.00022739,6]
[366456984,1750263061091,-474.87,0.00022739,6]
[366456985,1750263061101,-518.56,0.00022739,6]
[366456986,1750263061111,-460.0,0.00022739,6]
[366456987,1750263061120,-671.47,0.00022739,6]
[366456988,1750263061130,-4246.95,0.00022739,6]
[366456989,1750263061141,-460.0,0.00022739,6]
[366456990,1750263061150,-460.0,0.00022739,6]
[366456991,1750263061161,-424.79178926,0.00022739,6]
[366456992,1750263061171,-460.0,0.00022739,6]
[366456993,1750263061181,-318.81530803,0.00022739,6]
[366456994,1750263061190,-460.0,0.00022739,6]
[366456995,1750263061200,-460.0,0.00022739,6]
[366456996,1750263061209,-460.0,0.00022739,6]
[366456997,1750263061219,-460.0,0.00022739,6]
[366456998,1750263061229,-420.0,0.00022739,6]
[366456999,1750263061239,-3897.04,0.00022739,6]
[366457000,1750263061248,-1762.73,0.00022739,6]
[366457001,1750263061257,-741.78,0.00022739,6]
[366457002,1750263061267,-2527.95,0.00022739,6]
[366457003,1750263061277,-460.0,0.00022739,6]
[366457004,1750263061287,-500.0,0.00022739,6]
[366457005,1750263061296,-460.0,0.00022739,6]
[366457006,1750263061306,-3589.72,0.00022739,6]
[366457007,1750263061320,-1023.06,0.00022739,6]
[366457008,1750263061330,-460.0,0.00022739,6]
[366457009,1750263061340,-340.0,0.00022739,6]
[366457010,1750263061351,-305.01647299,0.00022739,6]
[366457011,1750263061360,-460.0,0.00022739,6]
[366457012,1750263061371,-460.0,0.00022739,6]
[366457013,1750263061381,-460.0,0.00022739,6]
[366457014,1750263061393,-662.53,0.00022739,6]
[366457015,1750263061402,-780.04,0.00022739,6]
[366457016,1750263061411,-460.0,0.00022739,6]
[366457017,1750263061421,-460.0,0.00022739,6]
[366457018,1750263061430,-440.0,0.00022739,6]
[366457019,1750263061440,-460.0,0.00022739,6]
[366457020,1750263061449,-460.0,0.00022739,6]
[366457021,1750263061460,-618.72,0.00022739,6]
[366457022,1750263061469,-460.0,0.00022739,6]
[366457023,1750263061480,-460.0,0.00022739,6]
[366457024,1750263061490,-460.0,0.00022739,6]
[366457025,1750263061500,-4198.1,0.00022739,6]
[366457026,1750263061510,-684.86,0.00022739,6]
[366457027,1750263061520,-460.0,0.00022739,6]
[366457028,1750263061529,-341.22536101,0.00022739,6]
[366457029,1750263061539,-460.0,0.00022739,6]
[366457030,1750263061548,-1596.71,0.00022739,6]
[366457031,1750263061558,-546.05,0.00022739,6]
[366457032,1750263061568,-460.0,0.00022739,6]
[366457033,1750263061577,-649.37,0.00022739,6]
[366457034,1750263061588,-477.36,0.00022739,6]
[366457035,1750263061598,-460.0,0.00022739,6]
[366457036,1750263061607,-460.0,0.00022739,6]
[366457037,1750263061617,-1896.77,0.00022739,6]
[366457038,1750263061626,-606.94,0.00022739,6]
[366457039,1750263061636,-268.58855894,0.00022739,6]
[366457040,1750263061646,-460.0,0.00022739,6]
[366457041,1750263061656,-975.69,0.00022739,6]
[366457042,1750263061665,-460.0,0.00022739,6]
[366457043,1750263061675,-460.0,0.00022739,6]
[366457044,1750263061684,-2289.57,0.00022739,6]
[366457045,1750263061694,-607.85,0.00022739,6]
[366457046,1750263061703,-1286.04,0.00022739,6]
[366457047,1750263061713,-460.0,0.00022739,6]
[366457048,1750263061722,-814.77,0.00022739,6]
[366457049,1750263061732,-1284.44,0.00022739,6]
[366457050,1750263061742,-460.0,0.00022739,6]
[366457051,1750263061751,-460.0,0.00022739,6]